fUSD/lending_fUSD_20240419
["ID","MTS","AMOUNT","RATE_DAILY","PERIOD"]
[322904197,1713491442644,-502.38794603,0.00016438,2]
[322904198,1713491442654,-500.0,0.00016438,2]
[322904199,1713491442663,-857.31,0.00016438,2]
[322904200,1713491442672,-500.0,0.00016438,2]
[322904201,1713491442681,-1427.95,0.00016438,2]
[322904202,1713491442690,-500.0,0.00016438,2]
[322904203,1713491442700,-795.79,0.00016438,2]
[322904204,1713491442709,-1190.33,0.00016438,2]
[322904205,1713491442724,-500.0,0.00016438,2]
[322904206,1713491442733,-1518.22,0.00016438,2]
[322904207,1713491442743,-502.21832258,0.00016438,2]
[322904208,1713491442752,-500.0,0.00016438,2]
[322904209,1713491442761,-678.0,0.00016438,2]
[322904210,1713491442771,-563.61,0.00016438,2]
[322904211,1713491442780,-500.0,0.00016438,2]
[322904212,1713491442789,-1456.79,0.00016438,2]
[322904213,1713491442799,-595.33,0.00016438,2]
[322904214,1713491442808,-500.0,0.00016438,2]
[322904215,1713491442817,-1155.62,0.00016438,2]
[322904216,1713491442827,-500.0,0.00016438,2]
[322904217,1713491442836,-1226.22,0.00016438,2]
[322904218,1713491442845,-641.86,0.00016438,2]
[322904219,1713491442855,-500.0,0.00016438,2]
[322904220,1713491442865,-500.0,0.00016438,2]
[322904221,1713491442875,-2318.73,0.00016438,2]
[322904222,1713491442889,-2727.05,0.00016438,2]
[322904223,1713491442898,-1140.64,0.00016438,2]
[322904224,1713491442907,-776.17,0.00016438,2]
[322904226,1713491442919,-500.0,0.00016438,2]
[322904228,1713491442928,-500.0,0.00016438,2]
[322904229,1713491442937,-500.0,0.00016438,2]
[322904231,1713491442947,-500.0,0.00016438,2]
[322904234,1713491442957,-500.0,0.00016438,2]
[322904237,1713491442972,-3516.1,0.00016438,2]
[322904240,1713491442982,-500.0,0.00016438,2]
[322904241,1713491442991,-500.0,0.00016438,2]
[322904242,1713491443000,-500.0,0.00016438,2]
[322904243,1713491443009,-500.0,0.00016438,2]
[322904244,1713491443018,-1256.12,0.00016438,2]
[322904245,1713491443027,-1658.11,0.00016438,2]
[322904246,1713491443037,-500.0,0.00016438,2]
[322904247,1713491443046,-500.0,0.00016438,2]
[322904248,1713491443054,-3359.07,0.00016438,2]
[322904249,1713491443063,-643.42,0.00016438,2]
[322904250,1713491443072,-500.0,0.00016438,2]
[322904251,1713491443081,-500.0,0.00016438,2]
[322904252,1713491443090,-500.0,0.00016438,2]
[322904253,1713491443099,-1554.5,0.00016438,2]
[322904254,1713491443109,-500.0,0.00016438,2]
[322904255,1713491443119,-500.0,0.00016438,2]
[322904259,1713491443129,-2462.3,0.00016438,2]
[322904261,1713491443138,-886.5,0.00016438,2]
[322904265,1713491443148,-807.1,0.00016438,2]
[322904267,1713491443158,-501.27655382,0.00016438,2]
[322904270,1713491443168,-2036.4,0.00016438,2]
[322904271,1713491443178,-761.39,0.00016438,2]
[322904273,1713491443188,-683.24,0.00016438,2]
[322904275,1713491443198,-503.6,0.00016438,2]
[322904277,1713491443207,-1043.42,0.00016438,2]
[322904279,1713491443222,-1937.6,0.00016438,2]
[322904282,1713491443231,-1240.62,0.00016438,2]
[322904286,1713491443240,-2677.57,0.00016438,2]
[322904290,1713491443249,-913.77,0.00016438,2]
[322904292,1713491443258,-500.0,0.00016438,2]
[322904294,1713491443267,-500.0,0.00016438,2]
[322904296,1713491443276,-500.0,0.00016438,2]
[322904297,1713491443285,-1531.56,0.00016438,2]
[322904299,1713491443294,-2902.99,0.00016438,2]
[322904300,1713491443303,-500.0,0.00016438,2]
[322904301,1713491443312,-1169.46,0.00016438,2]
[322904303,1713491443322,-1896.09,0.00016438,2]
[322904305,1713491443330,-559.92,0.00016438,2]
[322904308,1713491443340,-1703.01,0.00016438,2]
[322904310,1713491443349,-6213.27,0.00016438,2]
[322904312,1713491443358,-500.0,0.00016438,2]
[322904314,1713491443368,-500.0,0.00016438,2]
[322904316,1713491443377,-500.0,0.00016438,2]
[322904317,1713491443386,-1008.11,0.00016438,2]
[322904318,1713491443395,-921.55,0.00016438,2]
[322904319,1713491443404,-3000.76,0.00016438,2]
[322904320,1713491443414,-2854.6,0.00016438,2]
[322904321,1713491443423,-500.0,0.00016438,2]
[322904322,1713491443433,-500.0,0.00016438,2]
[322904323,1713491443441,-1708.53,0.00016438,2]
[322904324,1713491443451,-1311.14,0.00016438,2]
[322904325,1713491443460,-500.0,0.00016438,2]
[322904326,1713491443472,-500.0,0.00016438,2]
[322904327,1713491443481,-500.0,0.00016438,2]
[322904328,1713491443490,-500.0,0.00016438,2]
[322904329,1713491443500,-500.0,0.00016438,2]
[322904330,1713491443509,-500.0,0.00016438,2]
[322904331,1713491443518,-500.0,0.00016438,2]
[322904332,1713491443528,-3872.5,0.00016438,2]
[322904333,1713491443538,-1423.33,0.00016438,2]
[322904334,1713491443547,-500.0,0.00016438,2]
[322904335,1713491443556,-500.0,0.00016438,2]
[322904336,1713491443566,-5729.29,0.00016438,2]
[322904337,1713491443575,-500.0,0.00016438,2]
[322904338,1713491443586,-500.0,0.00016438,2]
[322904339,1713491443596,-1320.48,0.00016438,2]
[322904340,1713491443605,-647.5,0.00016438,2]
[322904341,1713491443615,-500.0,0.00016438,2]
[322904342,1713491443624,-4432.4,0.00016438,2]
[322904343,1713491443634,-500.0,0.00016438,2]
[322904344,1713491443644,-625.27,0.00016438,2]
[322904345,1713491443655,-500.0,0.00016438,2]
[322904346,1713491443665,-543.21,0.00016438,2]
[322904347,1713491443675,-500.0,0.00016438,2]
[322904348,1713491443686,-2564.61,0.00016438,2]
[322904349,1713491443696,-535.39,0.00016438,2]
[322904350,1713491443706,-500.0,0.00016438,2]
[322904351,1713491443723,-1015.33,0.00016438,2]
[322904352,1713491443734,-500.0,0.00016438,2]
[322904353,1713491443744,-1173.89,0.00016438,2]
[322904354,1713491443754,-500.0,0.00016438,2]
[322904355,1713491443764,-500.0,0.00016438,2]
[322904356,1713491443774,-1725.86,0.00016438,2]
[322904357,1713491443784,-653.08,0.00016438,2]
[322904358,1713491443795,-792.39,0.00016438,2]
[322904359,1713491443805,-3547.31,0.00016438,2]
[322904360,1713491443815,-3255.26,0.00016438,2]
[322904361,1713491443824,-1124.94,0.00016438,2]
[322904362,1713491443834,-500.0,0.00016438,2]
[322904363,1713491443843,-500.0,0.00016438,2]
[322904364,1713491443853,-500.0,0.00016438,2]
[322904365,1713491443863,-500.0,0.00016438,2]
[322904366,1713491443873,-1067.84,0.00016438,2]
[322904367,1713491443886,-4235.62,0.00016438,2]
[322904368,1713491443895,-500.0,0.00016438,2]
[322904369,1713491443905,-811.04,0.00016438,2]
[322904370,1713491443915,-797.66,0.00016438,2]
[322904371,1713491443924,-500.0,0.00016438,2]
[322904373,1713491443933,-500.0,0.00016438,2]
[322904375,1713491443944,-502.08898953,0.00016438,2]
[322904376,1713491443954,-502.25281326,0.00016438,2]
[322904377,1713491443965,-591.53,0.00016438,2]
[322904378,1713491443974,-2063.13,0.00016438,2]
[322904379,1713491443984,-181.66640997,0.00016438,2]
[322904380,1713491443993,-500.0,0.00016438,2]
[322904381,1713491444002,-500.0,0.00016438,2]
[322904382,1713491444012,-3258.36,0.00016438,2]
[322904384,1713491444021,-500.0,0.00016438,2]
[322904386,1713491444031,-501.30902142,0.00016438,2]
[322904387,1713491444040,-500.0,0.00016438,2]
[322904389,1713491444049,-500.0,0.00016438,2]
[322904391,1713491444059,-1551.47,0.00016438,2]
[322904392,1713491444068,-500.0,0.00016438,2]
[322904394,1713491444079,-1277.75,0.00016438,2]
[322904395,1713491444090,-5063.63,0.00016438,2]
[322904396,1713491444099,-568.88,0.00016438,2]
[322904397,1713491444108,-805.42,0.00016438,2]
[322904398,1713491444119,-867.8,0.00016438,2]
[322904399,1713491444129,-2739.64,0.00016438,2]
[322904400,1713491444139,-500.0,0.00016438,2]
[322904401,1713491444148,-500.0,0.00016438,2]
[322904402,1713491444158,-500.0,0.00016438,2]
[322904403,1713491444168,-3569.36,0.00016438,2]
[322904404,1713491444177,-500.0,0.00016438,2]
[322904405,1713491444187,-500.0,0.00016438,2]
[322904406,1713491444197,-290.81250775,0.00016438,2]
[322904407,1713491444206,-1178.71,0.00016438,2]
[322904408,1713491444219,-1334.53,0.00016438,2]
[322904409,1713491444229,-2794.51,0.00016438,2]
[322904410,1713491444238,-517.70270468,0.00016438,2]
[322904411,1713491444247,-500.0,0.00016438,2]
[322904412,1713491444257,-1059.31,0.00016438,2]
[322904413,1713491444266,-1209.48,0.00016438,2]
[322904414,1713491444276,-609.47,0.00016438,2]
[322904415,1713491444286,-500.0,0.00016438,2]
[322904416,1713491444295,-500.0,0.00016438,2]
[322904417,1713491444305,-2353.53,0.00016438,2]
[322904418,1713491444315,-500.0,0.00016438,2]
[322904419,1713491444324,-500.0,0.00016438,2]
[322904420,1713491444333,-500.0,0.00016438,2]
[322904421,1713491444343,-2409.46,0.00016438,2]
[322904422,1713491444353,-500.0,0.00016438,2]
[322904423,1713491444362,-2034.33,0.00016438,2]
[322904424,1713491444371,-500.0,0.00016438,2]
[322904425,1713491444381,-621.3,0.00016438,2]
[322904426,1713491444390,-500.0,0.00016438,2]
[322904427,1713491444399,-500.0,0.00016438,2]
[322904428,1713491444409,-500.0,0.00016438,2]
[322904429,1713491444418,-669.0,0.00016438,2]
[322904430,1713491444430,-500.0,0.00016438,2]
[322904431,1713491444439,-4190.09,0.00016438,2]
[322904432,1713491444448,-500.0,0.00016438,2]
[322904433,1713491444457,-500.0,0.00016438,2]
[322904434,1713491444469,-651.48,0.00016438,2]
[322904435,1713491444477,-2667.05,0.00016438,2]
[322904436,1713491444486,-1731.51,0.00016438,2]
[322904437,1713491444495,-500.0,0.00016438,2]
[322904438,1713491444504,-500.0,0.00016438,2]
[322904439,1713491444513,-500.0,0.00016438,2]
[322904440,1713491444522,-500.0,0.00016438,2]
[322904441,1713491444531,-2432.53,0.00016438,2]
[322904442,1713491444540,-4103.79,0.00016438,2]
[322904443,1713491444549,-500.0,0.00016438,2]
[322904444,1713491444559,-931.32,0.00016438,2]
[322904445,1713491444568,-568.69,0.00016438,2]
[322904446,1713491444577,-692.27,0.00016438,2]
[322904447,1713491444586,-500.0,0.00016438,2]
[322904448,1713491444595,-2078.4,0.00016438,2]
[322904449,1713491444605,-500.0,0.00016438,2]
[322904450,1713491444614,-1661.47,0.00016438,2]
[322904451,1713491444623,-1130.3,0.00016438,2]
[322904452,1713491444632,-5650.5,0.00016438,2]
[322904453,1713491444641,-500.0,0.00016438,2]
[322904454,1713491444650,-500.0,0.00016438,2]
[322904455,1713491444659,-558.23,0.00016438,2]
[322904456,1713491444668,-500.0,0.00016438,2]
[322904457,1713491444678,-500.0,0.00016438,2]
[322904458,1713491444687,-719.2,0.00016438,2]
[322904459,1713491444696,-500.0,0.00016438,2]
[322904460,1713491444706,-1897.41,0.00016438,2]
[322904461,1713491444719,-500.0,0.00016438,2]
[322904462,1713491444728,-2705.74,0.00016438,2]
[322904463,1713491444742,-500.0,0.00016438,2]
[322904464,1713491444752,-5830.57,0.00016438,2]
[322904465,1713491444762,-1657.23,0.00016438,2]
[322904466,1713491444771,-500.0,0.00016438,2]
[322904467,1713491444780,-1064.62,0.00016438,2]
[322904468,1713491444790,-500.0,0.00016438,2]
[322904469,1713491444799,-500.0,0.00016438,2]
[322904470,1713491444809,-718.91,0.00016438,2]
[322904471,1713491444818,-500.0,0.00016438,2]
[322904472,1713491444828,-500.0,0.00016438,2]
[322904473,1713491444838,-2695.39,0.00016438,2]
[322904474,1713491444848,-1114.62,0.00016438,2]
[322904475,1713491444858,-5464.43,0.00016438,2]
[322904476,1713491444869,-637.53,0.00016438,2]
[322904477,1713491444880,-5096.66,0.00016438,2]
[322904478,1713491444890,-874.48,0.00016438,2]
[322904479,1713491444900,-500.0,0.00016438,2]
[322904480,1713491444912,-4270.34,0.00016438,2]
[322904481,1713491444922,-2491.5,0.00016438,2]
[322904482,1713491444933,-500.0,0.00016438,2]
[322904483,1713491444943,-500.0,0.00016438,2]
[322904484,1713491444954,-500.0,0.00016438,2]
[322904485,1713491445269,-4683.57,0.00016438,2]
[322904486,1713491445280,-500.0,0.00016438,2]
[322904487,1713491445289,-500.0,0.00016438,2]
[322904488,1713491445299,-504.38120856,0.00016438,2]
[322904489,1713491445308,-4247.84,0.00016438,2]
[322904490,1713491445318,-3090.78,0.00016438,2]
[322904491,1713491445327,-2880.89,0.00016438,2]
[322904492,1713491445336,-500.0,0.00016438,2]
[322904493,1713491445346,-500.0,0.00016438,2]
[322904494,1713491445355,-1274.8,0.00016438,2]
[322904495,1713491445365,-1192.59,0.00016438,2]
[322904496,1713491445374,-500.0,0.00016438,2]
[322904497,1713491445384,-500.03949082,0.00016438,2]
[322904498,1713491445394,-500.4261615,0.00016438,2]
[322904499,1713491445403,-684.73,0.00016438,2]
[322904500,1713491445414,-500.0,0.00016438,2]
[322904501,1713491445424,-500.0,0.00016438,2]
[322904502,1713491445433,-2517.77,0.00016438,2]
[322904503,1713491445443,-3042.22,0.00016438,2]
[322904504,1713491445452,-500.30119963,0.00016438,2]
[322904505,1713491445462,-918.36,0.00016438,2]
[322904506,1713491445480,-2955.31,0.00016438,2]
[322904507,1713491445489,-725.32,0.00016438,2]
[322904508,1713491445499,-1078.96,0.00016438,2]
[322904509,1713491445509,-500.0,0.00016438,2]
[322904510,1713491445518,-500.0,0.00016438,2]
[322904511,1713491445528,-2967.96,0.00016438,2]
[322904512,1713491445537,-838.56,0.00016438,2]
[322904513,1713491445547,-4305.03,0.00016438,2]
[322904514,1713491445557,-500.0,0.00016438,2]
[322904515,1713491445567,-1792.18,0.00016438,2]
[322904516,1713491445576,-1725.86,0.00016438,2]
[322904517,1713491445586,-500.0,0.00016438,2]
[322904518,1713491445595,-500.0,0.00016438,2]
[322904519,1713491445605,-996.93,0.00016438,2]
[322904520,1713491445615,-2681.95,0.00016438,2]
[322904521,1713491445624,-500.0,0.00016438,2]
[322904522,1713491445633,-500.0,0.00016438,2]
[322904523,1713491445643,-500.0,0.00016438,2]
[322904524,1713491445652,-1010.9,0.00016438,2]
[322904525,1713491445661,-284.0,0.00016438,2]
[322904526,1713491445671,-559.42,0.00016438,2]
[322904527,1713491445680,-945.2,0.00016438,2]
[322904528,1713491445689,-530.19,0.00016438,2]
[322904529,1713491445698,-978.51,0.00016438,2]
[322904530,1713491445708,-500.0,0.00016438,2]
[322904531,1713491445722,-1982.19,0.00016438,2]
[322904532,1713491445731,-500.0,0.00016438,2]
[322904533,1713491445741,-1236.64,0.00016438,2]
[322904534,1713491445750,-500.0,0.00016438,2]
[322904535,1713491445759,-500.0,0.00016438,2]
[322904536,1713491445769,-718.83,0.00016438,2]
[322904537,1713491445779,-500.0,0.00016438,2]
[322904538,1713491445789,-1655.28,0.00016438,2]
[322904539,1713491445798,-500.0,0.00016438,2]
[322904540,1713491445808,-500.0,0.00016438,2]
[322904541,1713491445818,-3455.07,0.00016438,2]
[322904542,1713491445827,-2351.38,0.00016438,2]
[322904543,1713491445837,-500.0,0.00016438,2]
[322904544,1713491445846,-500.0,0.00016438,2]
[322904545,1713491445855,-1597.46,0.00016438,2]
[322904546,1713491445867,-500.0,0.00016438,2]
[322904547,1713491445878,-2237.34,0.00016438,2]
[322904548,1713491445888,-2350.66,0.00016438,2]
[322904549,1713491445898,-500.46591017,0.00016438,2]
[322904550,1713491445907,-376.92748373,0.00016438,2]
[322904551,1713491445916,-500.0,0.00016438,2]
[322904552,1713491445928,-500.80421208,0.00016438,2]
[322904553,1713491445937,-500.0,0.00016438,2]
[322904554,1713491445947,-500.0,0.00016438,2]
[322904555,1713491445958,-3526.4,0.00016438,2]
[322904556,1713491445972,-500.0,0.00016438,2]
[322904557,1713491445982,-500.0,0.00016438,2]
[322904558,1713491445992,-500.47341216,0.00016438,2]
[322904559,1713491446001,-1040.48,0.00016438,2]
[322904560,1713491446009,-1682.39,0.00016438,2]
[322904561,1713491446019,-1769.27,0.00016438,2]
[322904562,1713491446028,-500.0,0.00016438,2]
[322904563,1713491446037,-1565.15,0.00016438,2]
[322904564,1713491446046,-795.82,0.00016438,2]
[322904565,1713491446055,-500.0,0.00016438,2]
[322904566,1713491446065,-821.7,0.00016438,2]
[322904567,1713491446075,-2419.97,0.00016438,2]
[322904568,1713491446086,-500.0,0.00016438,2]
[322904569,1713491446096,-500.70809039,0.00016438,2]
[322904570,1713491446107,-500.0,0.00016438,2]
[322904571,1713491446117,-500.0,0.00016438,2]
[322904572,1713491446128,-1398.37,0.00016438,2]
[322904573,1713491446138,-560.75,0.00016438,2]
[322904574,1713491446149,-3591.74,0.00016438,2]
[322904576,1713491446160,-2023.42,0.00016438,2]
[322904578,1713491446170,-517.35289031,0.00016438,2]
[322904580,1713491446180,-500.0,0.00016438,2]
[322904581,1713491446191,-1767.3,0.00016438,2]
[322904582,1713491446201,-3006.59,0.00016438,2]
[322904583,1713491446211,-2263.83,0.00016438,2]
[322904585,1713491446227,-500.0,0.00016438,2]
[322904587,1713491446236,-500.0,0.00016438,2]
[322904588,1713491446245,-2052.96,0.00016438,2]
[322904589,1713491446254,-3234.97,0.00016438,2]
[322904590,1713491446265,-999.25,0.00016438,2]
[322904591,1713491446274,-500.0,0.00016438,2]
[322904592,1713491446283,-1522.12,0.00016438,2]
[322904594,1713491446292,-1071.03,0.00016438,2]
[322904596,1713491446302,-3573.4,0.00016438,2]
[322904598,1713491446311,-523.60165005,0.00016438,2]
[322904600,1713491446320,-532.12,0.00016438,2]
[322904602,1713491446329,-506.92,0.00016438,2]
[322904604,1713491446338,-799.37,0.00016438,2]
[322904606,1713491446347,-4145.95,0.00016438,2]
[322904608,1713491446356,-500.0,0.00016438,2]
[322904610,1713491446366,-500.0,0.00016438,2]
[322904612,1713491446375,-500.0,0.00016438,2]
[322904614,1713491446385,-2994.76,0.00016438,2]
[322904615,1713491446396,-1041.48,0.00016438,2]
[322904616,1713491446406,-2300.84,0.00016438,2]
[322904617,1713491446416,-500.0,0.00016438,2]
[322904619,1713491446426,-500.0,0.00016438,2]
[322904621,1713491446436,-500.0,0.00016438,2]
[322904623,1713491446446,-771.11,0.00016438,2]
[322904625,1713491446456,-500.0,0.00016438,2]
[322904626,1713491446468,-500.0,0.00016438,2]
[322904629,1713491446478,-502.52709663,0.00016438,2]
[322904631,1713491446488,-500.0,0.00016438,2]
[322904633,1713491446498,-500.0,0.00016438,2]
[322904635,1713491446507,-500.0,0.00016438,2]
[322904637,1713491446517,-500.0,0.00016438,2]
[322904639,1713491446526,-672.27,0.00016438,2]
[322904641,1713491446536,-1527.77,0.00016438,2]
[322904643,1713491446545,-500.0,0.00016438,2]
[322904645,1713491446555,-1177.4,0.00016438,2]
[322904647,1713491446565,-500.0,0.00016438,2]
[322904649,1713491446575,-500.0,0.00016438,2]
[322904651,1713491446584,-500.0,0.00016438,2]
[322904652,1713491446594,-993.63,0.00016438,2]
[322904653,1713491446603,-500.0,0.00016438,2]
[322904654,1713491446613,-500.0,0.00016438,2]
[322904655,1713491446624,-500.0,0.00016438,2]
[322904656,1713491446633,-3652.69,0.00016438,2]
[322904657,1713491446642,-500.0,0.00016438,2]
[322904658,1713491446652,-1453.81,0.00016438,2]
[322904659,1713491446661,-500.0,0.00016438,2]
[322904660,1713491446671,-500.0,0.00016438,2]
[322904661,1713491446681,-7542.44,0.00016438,2]
[322904662,1713491446690,-500.0,0.00016438,2]
[322904663,1713491446700,-667.79,0.00016438,2]
[322904664,1713491446711,-500.0,0.00016438,2]
[322904665,1713491446728,-500.0,0.00016438,2]
[322904666,1713491446737,-500.0,0.00016438,2]
[322904667,1713491446747,-4325.02,0.00016438,2]
[322904668,1713491446756,-500.0,0.00016438,2]
[322904669,1713491446767,-500.0,0.00016438,2]
[322904670,1713491446776,-500.0,0.00016438,2]
[322904671,1713491446786,-500.0,0.00016438,2]
[322904672,1713491446796,-500.0,0.00016438,2]
[322904673,1713491446806,-1263.26,0.00016438,2]
[322904674,1713491446816,-500.0,0.00016438,2]
[322904675,1713491446826,-390.24265509,0.00016438,2]
[322904676,1713491446836,-2154.11,0.00016438,2]
[322904677,1713491446845,-2336.53,0.00016438,2]
[322904678,1713491446855,-3878.03,0.00016438,2]
[322904680,1713491446866,-500.0,0.00016438,2]
[322904681,1713491446878,-4668.72,0.00016438,2]
[322904682,1713491446887,-500.0,0.00016438,2]
[322904683,1713491446897,-500.0,0.00016438,2]
[322904684,1713491446906,-2611.53,0.00016438,2]
[322904685,1713491446917,-1108.17,0.00016438,2]
[322904686,1713491446926,-1220.37,0.00016438,2]
[322904687,1713491446936,-500.0,0.00016438,2]
[322904688,1713491446947,-500.0,0.00016438,2]
[322904689,1713491446957,-3120.61,0.00016438,2]
[322904690,1713491446972,-500.0,0.00016438,2]
[322904691,1713491446982,-2246.68,0.00016438,2]
[322904692,1713491446991,-771.62,0.00016438,2]
[322904693,1713491447001,-2430.36,0.00016438,2]
[322904694,1713491447012,-1317.86,0.00016438,2]
[322904695,1713491447022,-500.0,0.00016438,2]
[322904696,1713491447032,-500.0,0.00016438,2]
[322904697,1713491447041,-5843.55,0.00016438,2]
[322904698,1713491447051,-2659.26,0.00016438,2]
[322904699,1713491447061,-500.0,0.00016438,2]
[322904700,1713491447070,-500.0,0.00016438,2]
[322904701,1713491447080,-500.0,0.00016438,2]
[322904702,1713491447090,-500.0,0.00016438,2]
[322904703,1713491447100,-500.0,0.00016438,2]
[322904704,1713491447110,-5380.74,0.00016438,2]
[322904705,1713491447119,-2654.86,0.00016438,2]
[322904707,1713491447129,-2298.09,0.00016438,2]
[322904708,1713491447139,-500.0,0.00016438,2]
[322904709,1713491447149,-500.0,0.00016438,2]
[322904710,1713491447158,-1608.04,0.00016438,2]
[322904711,1713491447169,-1128.94,0.00016438,2]
[322904712,1713491447179,-3254.09,0.00016438,2]
[322904713,1713491447189,-500.0,0.00016438,2]
[322904714,1713491447200,-500.0,0.00016438,2]
[322904715,1713491447209,-500.0,0.00016438,2]
[322904716,1713491447222,-500.0,0.00016438,2]
[322904717,1713491447232,-694.32,0.00016438,2]
[322904718,1713491447241,-500.0,0.00016438,2]
[322904719,1713491447251,-500.0,0.00016438,2]
[322904720,1713491447261,-500.0,0.00016438,2]
[322904721,1713491447271,-628.11337542,0.00016438,2]
[322904722,1713491447280,-2248.35,0.00016438,2]
[322904723,1713491447290,-500.0,0.00016438,2]
[322904724,1713491447300,-502.23727394,0.00016438,2]
[322904725,1713491447309,-800.36,0.00016438,2]
[322904726,1713491447319,-500.0,0.00016438,2]
[322904727,1713491447329,-865.31,0.00016438,2]
[322904728,1713491447338,-624.64032249,0.00016438,2]
[322904729,1713491447348,-927.85,0.00016438,2]
[322904730,1713491447357,-500.0,0.00016438,2]
[322904731,1713491447367,-500.0,0.00016438,2]
[322904732,1713491447376,-1776.95,0.00016438,2]
[322904733,1713491447386,-500.0,0.00016438,2]
[322904734,1713491447396,-586.01,0.00016438,2]
[322904735,1713491447406,-1404.09,0.00016438,2]
[322904736,1713491447415,-3406.71,0.00016438,2]
[322904737,1713491447425,-500.0,0.00016438,2]
[322904738,1713491447435,-318.80405612,0.00016438,2]
[322904739,1713491447448,-1534.0,0.00016438,2]
[322904740,1713491447457,-500.74268505,0.00016438,2]
[322904741,1713491447472,-500.0,0.00016438,2]
[322904742,1713491447481,-500.0,0.00016438,2]
[322904743,1713491447490,-500.0,0.00016438,2]
[322904744,1713491447498,-500.0,0.00016438,2]
[322904745,1713491447507,-534.94395549,0.00016438,2]
[322904746,1713491447517,-500.0,0.00016438,2]
[322904747,1713491447527,-500.0,0.00016438,2]
[322904748,1713491447536,-500.0,0.00016438,2]
[322904749,1713491447545,-500.0,0.00016438,2]
[322904750,1713491447554,-500.0,0.00016438,2]
[322904751,1713491447563,-500.0,0.00016438,2]
[322904752,1713491447573,-500.0,0.00016438,2]
[322904753,1713491447582,-500.0,0.00016438,2]
[322904754,1713491447592,-500.0,0.00016438,2]
[322904755,1713491447602,-500.0,0.00016438,2]
[322904756,1713491447611,-500.0,0.00016438,2]
[322904757,1713491447620,-500.0,0.00016438,2]
[322904758,1713491447734,-500.0,0.00016438,2]
[322904759,1713491447744,-1338.15,0.00016438,2]
[322904760,1713491447753,-500.0,0.00016438,2]
[322904761,1713491447763,-500.0,0.00016438,2]
[322904762,1713491447772,-500.0,0.00016438,2]
[322904763,1713491447782,-500.0,0.00016438,2]
[322904764,1713491447792,-503.5664364,0.00016438,2]
[322904765,1713491447802,-904.21,0.00016438,2]
[322904766,1713491447811,-500.0,0.00016438,2]
[322904767,1713491447823,-500.0,0.00016438,2]
[322904768,1713491447833,-647.95,0.00016438,2]
[322904769,1713491447843,-500.0,0.00016438,2]
[322904770,1713491447852,-500.0,0.00016438,2]
[322904771,1713491447861,-500.0,0.00016438,2]
[322904772,1713491447872,-500.0,0.00016438,2]
[322904773,1713491447886,-500.0,0.00016438,2]
[322904774,1713491447896,-500.0,0.00016438,2]
[322904775,1713491447905,-500.0,0.00016438,2]
[322904776,1713491447915,-500.0,0.00016438,2]
[322904777,1713491447926,-500.0,0.00016438,2]
[322904778,1713491447935,-500.0,0.00016438,2]
[322904779,1713491447945,-500.0,0.00016438,2]
[322904780,1713491447956,-500.0,0.00016438,2]
[322904781,1713491447969,-500.0,0.00016438,2]